[Event "November 21 Late 2023"]
[Site "https://www.chess.com"]
[Date "2023.11.21"]
[Round "3"]
[White "Gholami Orimi, Mahdi"]
[Black "ExchangeAB"]
[Result "1-0"]
[Board "54"]
[TimeControl "180+1"]
[WhiteFideId "12558486"]
[WhiteElo "2331"]
[BlackElo "2501"]
[WhiteTeam "IRI"]
[WhiteClock "0:00:36"]
[BlackClock "0:00:08"]

1. d4 {[%clk 0:02:54]}  d5 {[%clk 0:02:58]} 2. c4 {[%clk 0:02:54]}  c6 {[%clk 0:02:58]} 3. Nf3 {[%clk 0:02:54]}  Nf6 {[%clk 0:02:58]} 4. Nc3 {[%clk 0:02:52]}  dxc4 {[%clk 0:02:58]} 5. a4 {[%clk 0:02:52]}  Bf5 {[%clk 0:02:58]} 6. Ne5 {[%clk 0:02:52]}  Nbd7 {[%clk 0:02:58]} 7. Nxc4 {[%clk 0:02:52]}  Nb6 {[%clk 0:02:58]} 8. Ne5 {[%clk 0:02:53]}  a5 {[%clk 0:02:59]} 9. h4 {[%clk 0:02:52]}  e6 {[%clk 0:02:50]} 10. f3 {[%clk 0:02:48]}  h6 {[%clk 0:02:44]} 11. e4 {[%clk 0:02:48]}  Bh7 {[%clk 0:02:44]} 12. Be3 {[%clk 0:02:48]}  Bb4 {[%clk 0:02:40]} 13. Be2 {[%clk 0:02:39]}  O-O {[%clk 0:02:38]} 14. Qd2 {[%clk 0:02:30]}  Nfd7 {[%clk 0:02:37]} 15. Nxd7 {[%clk 0:02:15]}  Qxd7 {[%clk 0:02:30]} 16. O-O {[%clk 0:02:15]}  Qe7 {[%clk 0:02:22]} 17. Qe1 {[%clk 0:02:12]}  f5 {[%clk 0:02:04]} 18. Qg3 {[%clk 0:02:09]}  Kh8 {[%clk 0:01:57]} 19. Bf4 {[%clk 0:02:07]}  Rad8 {[%clk 0:01:45]} 20. Rad1 {[%clk 0:02:06]}  Bd6 {[%clk 0:01:34]} 21. Bxd6 {[%clk 0:01:56]}  Qxd6 {[%clk 0:01:30]} 22. Qxd6 {[%clk 0:01:43]}  Rxd6 {[%clk 0:01:31]} 23. e5 {[%clk 0:01:42]}  Rd7 {[%clk 0:01:27]} 24. Rd2 {[%clk 0:01:32]}  Rfd8 {[%clk 0:01:24]} 25. Rfd1 {[%clk 0:01:32]}  g5 {[%clk 0:01:24]} 26. hxg5 {[%clk 0:01:31]}  hxg5 {[%clk 0:01:25]} 27. g3 {[%clk 0:01:31]}  f4 {[%clk 0:01:23]} 28. gxf4 {[%clk 0:01:20]}  gxf4 {[%clk 0:01:24]} 29. Kf2 {[%clk 0:01:21]}  Rg7 {[%clk 0:01:15]} 30. Rh1 {[%clk 0:01:18]}  Kg8 {[%clk 0:00:59]} 31. Rh4 {[%clk 0:01:13]}  Rf8 {[%clk 0:00:59]} 32. b3 {[%clk 0:01:10]}  Kf7 {[%clk 0:00:47]} 33. Ne4 {[%clk 0:01:06]}  Bxe4 {[%clk 0:00:43]} 34. fxe4 {[%clk 0:01:07]}  Ke7 {[%clk 0:00:41]} 35. Bf3 {[%clk 0:01:00]}  Nd7 {[%clk 0:00:31]} 36. Rh5 {[%clk 0:00:44]}  Rff7 {[%clk 0:00:28]} 37. d5 {[%clk 0:00:38]}  cxd5 {[%clk 0:00:26]} 38. exd5 {[%clk 0:00:39]}  exd5 {[%clk 0:00:20]} 39. e6 {[%clk 0:00:38]}  Rh7 {[%clk 0:00:18]} 40. Rxh7 {[%clk 0:00:37]}  Rxh7 {[%clk 0:00:17]} 41. exd7 {[%clk 0:00:37]}  Kxd7 {[%clk 0:00:17]} 42. Rxd5+ {[%clk 0:00:37]}  Kc7 {[%clk 0:00:17]} 43. Rxa5 {[%clk 0:00:37]}  Rh2+ {[%clk 0:00:16]} 44. Bg2 {[%clk 0:00:38]}  Rh6 {[%clk 0:00:12]} 45. Rb5 {[%clk 0:00:35]}  Rd6 {[%clk 0:00:10]} 46. Rxb7+ {[%clk 0:00:35]}  Kc8 {[%clk 0:00:08]} 47. Rb5 {[%clk 0:00:36]} 1-0

[Event "November 21 Late 2023"]
[Site "https://www.chess.com"]
[Date "2023.11.21"]
[Round "3"]
[White "Sreyas Payyappat"]
[Black "Tang, Andrew"]
[Result "0-1"]
[Board "55"]
[TimeControl "180+1"]
[WhiteFideId "46674969"]
[BlackFideId "2059630"]
[WhiteElo "2043"]
[BlackElo "2589"]
[WhiteTeam "IND"]
[BlackTeam "USA"]
[WhiteClock "0:00:00"]
[BlackClock "0:00:24"]

1. e4 {[%clk 0:03:00]}  e5 {[%clk 0:02:56]} 2. Nf3 {[%clk 0:03:00]}  Nc6 {[%clk 0:02:48]} 3. Bc4 {[%clk 0:02:58]}  Nf6 {[%clk 0:02:42]} 4. d4 {[%clk 0:02:57]}  exd4 {[%clk 0:02:36]} 5. e5 {[%clk 0:02:58]}  d5 {[%clk 0:02:31]} 6. Bb5 {[%clk 0:02:57]}  Ne4 {[%clk 0:02:27]} 7. Nxd4 {[%clk 0:02:56]}  Bc5 {[%clk 0:02:24]} 8. Be3 {[%clk 0:02:54]}  Bd7 {[%clk 0:02:22]} 9. Bxc6 {[%clk 0:02:35]}  bxc6 {[%clk 0:02:21]} 10. O-O {[%clk 0:02:35]}  Qe7 {[%clk 0:02:19]} 11. f3 {[%clk 0:02:19]}  Nd6 {[%clk 0:02:17]} 12. f4 {[%clk 0:02:01]}  Nc4 {[%clk 0:02:03]} 13. Qe2 {[%clk 0:01:39]}  Nxb2 {[%clk 0:01:58]} 14. Nd2 {[%clk 0:01:36]}  O-O {[%clk 0:01:46]} 15. N2b3 {[%clk 0:01:18]}  Bb6 {[%clk 0:01:44]} 16. Bf2 {[%clk 0:01:11]}  Rae8 {[%clk 0:01:38]} 17. Rae1 {[%clk 0:01:02]}  Nc4 {[%clk 0:01:32]} 18. Kh1 {[%clk 0:00:53]}  c5 {[%clk 0:01:28]} 19. Nf3 {[%clk 0:00:49]}  Bf5 {[%clk 0:01:21]} 20. h3 {[%clk 0:00:42]}  f6 {[%clk 0:01:19]} 21. Bh4 {[%clk 0:00:34]}  Qf7 {[%clk 0:01:16]} 22. Qf2 {[%clk 0:00:17]}  fxe5 {[%clk 0:01:10]} 23. fxe5 {[%clk 0:00:13]}  Be4 {[%clk 0:01:01]} 24. Qg3 {[%clk 0:00:12]}  Bxc2 {[%clk 0:00:36]} 25. Bf6 {[%clk 0:00:07]}  Qg6 {[%clk 0:00:35]} 26. Qxg6 {[%clk 0:00:04]}  Bxg6 {[%clk 0:00:33]} 27. Bg5 {[%clk 0:00:03]}  Nxe5 {[%clk 0:00:26]} 28. Nxe5 {[%clk 0:00:02]}  Rxf1+ {[%clk 0:00:25]} 29. Rxf1 {[%clk 0:00:03]}  Rxe5 {[%clk 0:00:26]} 30. Bf4 {[%clk 0:00:03]}  Re8 {[%clk 0:00:25]} 31. Bg3 {[%clk 0:00:00]}  c4 {[%clk 0:00:24]} 0-1

[Event "November 21 Late 2023"]
[Site "https://www.chess.com"]
[Date "2023.11.21"]
[Round "3"]
[White "Szpar, Milosz"]
[Black "BM223344"]
[Result "1-0"]
[Board "58"]
[TimeControl "180+1"]
[WhiteFideId "1184989"]
[WhiteElo "2446"]
[BlackElo "2492"]
[WhiteTeam "POL"]
[WhiteClock "0:01:24"]
[BlackClock "0:02:01"]

1. e4 {[%clk 0:02:54]}  e6 {[%clk 0:02:58]} 2. d4 {[%clk 0:02:54]}  d5 {[%clk 0:02:57]} 3. Nc3 {[%clk 0:02:54]}  Nf6 {[%clk 0:02:57]} 4. Bg5 {[%clk 0:02:52]}  Be7 {[%clk 0:02:57]} 5. e5 {[%clk 0:02:51]}  Nfd7 {[%clk 0:02:58]} 6. h4 {[%clk 0:02:51]}  h6 {[%clk 0:02:58]} 7. Bxe7 {[%clk 0:02:51]}  Qxe7 {[%clk 0:02:59]} 8. Qg4 {[%clk 0:02:46]}  O-O {[%clk 0:02:59]} 9. f4 {[%clk 0:02:33]}  f5 {[%clk 0:02:59]} 10. Qd1 {[%clk 0:02:31]}  c5 {[%clk 0:02:59]} 11. Nf3 {[%clk 0:02:31]}  Nc6 {[%clk 0:02:59]} 12. Qd2 {[%clk 0:02:28]}  a6 {[%clk 0:02:59]} 13. h5 {[%clk 0:02:26]}  b5 {[%clk 0:02:57]} 14. Ne2 {[%clk 0:02:25]}  cxd4 {[%clk 0:02:53]} 15. Nexd4 {[%clk 0:02:24]}  Nxd4 {[%clk 0:02:53]} 16. Nxd4 {[%clk 0:02:24]}  Nc5 {[%clk 0:02:54]} 17. Bd3 {[%clk 0:02:22]}  Bb7 {[%clk 0:02:53]} 18. O-O-O {[%clk 0:02:18]}  Rfc8 {[%clk 0:02:52]} 19. Kb1 {[%clk 0:02:18]}  Ne4 {[%clk 0:02:52]} 20. Qe1 {[%clk 0:02:09]}  b4 {[%clk 0:02:46]} 21. Bxe4 {[%clk 0:01:58]}  dxe4 {[%clk 0:02:46]} 22. g4 {[%clk 0:01:58]}  fxg4 {[%clk 0:02:37]} 23. Rg1 {[%clk 0:01:58]}  Qf7 {[%clk 0:02:36]} 24. Rxg4 {[%clk 0:01:57]}  Qxh5 {[%clk 0:02:34]} 25. Qg3 {[%clk 0:01:58]}  Qf7 {[%clk 0:02:15]} 26. Rg1 {[%clk 0:01:33]}  Rc7 {[%clk 0:02:15]} 27. Nxe6 {[%clk 0:01:30]}  Qxe6 {[%clk 0:01:57]} 28. Rxg7+ {[%clk 0:01:29]}  Kh8 {[%clk 0:01:57]} 29. Rxc7 {[%clk 0:01:27]}  Rg8 {[%clk 0:01:58]} 30. Qxg8+ {[%clk 0:01:23]}  Qxg8 {[%clk 0:01:59]} 31. Rxg8+ {[%clk 0:01:23]}  Kxg8 {[%clk 0:02:00]} 32. Rxb7 {[%clk 0:01:23]}  e3 {[%clk 0:02:01]} 33. Rxb4 {[%clk 0:01:24]}  e2 {[%clk 0:02:01]} 34. Re4 {[%clk 0:01:24]} 1-0

[Event "November 21 Late 2023"]
[Site "https://www.chess.com"]
[Date "2023.11.21"]
[Round "3"]
[White "Ghasi, Ameet K"]
[Black "Koutlas, Nikolaos"]
[Result "1-0"]
[Board "59"]
[TimeControl "180+1"]
[WhiteFideId "409200"]
[BlackFideId "25827138"]
[WhiteElo "2558"]
[BlackElo "2215"]
[WhiteTeam "ENG"]
[BlackTeam "GRE"]
[WhiteClock "0:00:02"]
[BlackClock "0:00:00"]

1. b3 {[%clk 0:03:00]}  c5 {[%clk 0:02:46]} 2. Bb2 {[%clk 0:03:01]}  Nc6 {[%clk 0:02:46]} 3. e4 {[%clk 0:03:02]}  e5 {[%clk 0:02:44]} 4. Nf3 {[%clk 0:03:02]}  d6 {[%clk 0:02:44]} 5. Bc4 {[%clk 0:03:02]}  g6 {[%clk 0:02:41]} 6. h4 {[%clk 0:03:02]}  h6 {[%clk 0:02:38]} 7. c3 {[%clk 0:03:00]}  Bg7 {[%clk 0:02:37]} 8. d4 {[%clk 0:02:59]}  exd4 {[%clk 0:02:37]} 9. O-O {[%clk 0:03:00]}  Nge7 {[%clk 0:02:37]} 10. cxd4 {[%clk 0:02:57]}  O-O {[%clk 0:02:37]} 11. Na3 {[%clk 0:02:51]}  a6 {[%clk 0:02:34]} 12. Nc2 {[%clk 0:02:51]}  b5 {[%clk 0:02:29]} 13. Be2 {[%clk 0:02:52]}  Bb7 {[%clk 0:02:25]} 14. a4 {[%clk 0:02:22]}  Qb6 {[%clk 0:01:49]} 15. Qd2 {[%clk 0:02:20]}  Rac8 {[%clk 0:01:43]} 16. axb5 {[%clk 0:02:11]}  axb5 {[%clk 0:01:40]} 17. Na3 {[%clk 0:02:11]}  Nxd4 {[%clk 0:01:34]} 18. Nxd4 {[%clk 0:02:10]}  cxd4 {[%clk 0:01:34]} 19. Nxb5 {[%clk 0:02:10]}  Bxe4 {[%clk 0:01:09]} 20. Nxd4 {[%clk 0:02:04]}  Qb7 {[%clk 0:00:57]} 21. Ba6 {[%clk 0:01:58]}  Qd5 {[%clk 0:00:51]} 22. Bxc8 {[%clk 0:01:46]}  Rxc8 {[%clk 0:00:47]} 23. Ra5 {[%clk 0:00:25]}  Rc5 {[%clk 0:00:20]} 24. b4 {[%clk 0:00:18]}  Rxa5 {[%clk 0:00:19]} 25. bxa5 {[%clk 0:00:19]}  Bxg2 {[%clk 0:00:15]} 26. Rd1 {[%clk 0:00:19]}  Bh3 {[%clk 0:00:11]} 27. f3 {[%clk 0:00:16]}  Qc5 {[%clk 0:00:06]} 28. Qe3 {[%clk 0:00:13]}  Nc6 {[%clk 0:00:04]} 29. a6 {[%clk 0:00:11]}  Ne5 {[%clk 0:00:02]} 30. Rc1 {[%clk 0:00:07]}  Nc4 {[%clk 0:00:02]} 31. Qf2 {[%clk 0:00:07]}  Qd5 {[%clk 0:00:01]} 32. a7 {[%clk 0:00:05]}  Nxb2 {[%clk 0:00:00]} 33. Kh2 {[%clk 0:00:02]} 1-0

[Event "November 21 Late 2023"]
[Site "https://www.chess.com"]
[Date "2023.11.21"]
[Round "3"]
[White "Osmak, Yuliia"]
[Black "Arifarsky"]
[Result "0-1"]
[Board "62"]
[TimeControl "180+1"]
[WhiteFideId "14101602"]
[WhiteElo "2303"]
[BlackElo "2774"]
[WhiteTeam "UKR"]
[WhiteClock "0:00:00"]
[BlackClock "0:00:04"]

1. e4 {[%clk 0:02:53]}  c5 {[%clk 0:02:58]} 2. Nf3 {[%clk 0:02:49]}  e6 {[%clk 0:02:59]} 3. g3 {[%clk 0:02:48]}  b6 {[%clk 0:02:54]} 4. Bg2 {[%clk 0:02:46]}  Bb7 {[%clk 0:02:55]} 5. Nc3 {[%clk 0:02:43]}  Nc6 {[%clk 0:02:54]} 6. O-O {[%clk 0:02:39]}  e5 {[%clk 0:02:36]} 7. d3 {[%clk 0:02:34]}  d6 {[%clk 0:02:37]} 8. Nd2 {[%clk 0:02:29]}  Nf6 {[%clk 0:02:33]} 9. Nc4 {[%clk 0:02:28]}  Be7 {[%clk 0:02:29]} 10. f4 {[%clk 0:02:24]}  O-O {[%clk 0:02:27]} 11. f5 {[%clk 0:02:21]}  Nd4 {[%clk 0:02:18]} 12. Ne3 {[%clk 0:02:12]}  b5 {[%clk 0:02:11]} 13. g4 {[%clk 0:02:05]}  b4 {[%clk 0:02:10]} 14. Ne2 {[%clk 0:01:59]}  h6 {[%clk 0:02:00]} 15. Ng3 {[%clk 0:01:52]}  d5 {[%clk 0:01:54]} 16. c3 {[%clk 0:01:44]}  bxc3 {[%clk 0:01:43]} 17. bxc3 {[%clk 0:01:45]}  Nb5 {[%clk 0:01:42]} 18. c4 {[%clk 0:01:42]}  dxc4 {[%clk 0:01:25]} 19. Nxc4 {[%clk 0:01:35]}  Ba6 {[%clk 0:01:08]} 20. g5 {[%clk 0:01:21]}  hxg5 {[%clk 0:01:06]} 21. Bxg5 {[%clk 0:01:22]}  Nh7 {[%clk 0:00:44]} 22. Be3 {[%clk 0:01:13]}  Re8 {[%clk 0:00:32]} 23. Qc2 {[%clk 0:00:42]}  Nd4 {[%clk 0:00:29]} 24. Qa4 {[%clk 0:00:41]}  Bb5 {[%clk 0:00:28]} 25. Qd1 {[%clk 0:00:34]}  Bxc4 {[%clk 0:00:28]} 26. dxc4 {[%clk 0:00:33]}  Bg5 {[%clk 0:00:28]} 27. Bf2 {[%clk 0:00:29]}  Nf6 {[%clk 0:00:25]} 28. Ne2 {[%clk 0:00:27]}  Rb8 {[%clk 0:00:20]} 29. Nc3 {[%clk 0:00:24]}  Rb2 {[%clk 0:00:17]} 30. Rb1 {[%clk 0:00:21]}  Qb8 {[%clk 0:00:11]} 31. Nb5 {[%clk 0:00:13]}  Rxb1 {[%clk 0:00:08]} 32. Qxb1 {[%clk 0:00:14]}  a6 {[%clk 0:00:05]} 33. Nc3 {[%clk 0:00:11]}  Qd6 {[%clk 0:00:04]} 34. Nd5 {[%clk 0:00:11]}  Nxd5 {[%clk 0:00:04]} 35. cxd5 {[%clk 0:00:07]}  Rb8 {[%clk 0:00:04]} 36. Qd3 {[%clk 0:00:07]}  Rb2 {[%clk 0:00:03]} 37. Rb1 {[%clk 0:00:04]}  Qb6 {[%clk 0:00:03]} 38. Rxb2 {[%clk 0:00:04]}  Qxb2 {[%clk 0:00:04]} 39. d6 {[%clk 0:00:01]}  Qb6 {[%clk 0:00:03]} 40. d7 {[%clk 0:00:00]}  Qd6 {[%clk 0:00:04]} 0-1

[Event "November 21 Late 2023"]
[Site "https://www.chess.com"]
[Date "2023.11.21"]
[Round "3"]
[White "Skvortsov, Andrei"]
[Black "Shton, Roman"]
[Result "1-0"]
[Board "63"]
[TimeControl "180+1"]
[WhiteFideId "24108600"]
[BlackFideId "14137461"]
[WhiteElo "2357"]
[BlackElo "2027"]
[WhiteTeam "MNE"]
[BlackTeam "UKR"]
[WhiteClock "0:00:11"]
[BlackClock "0:00:05"]

1. d4 {[%clk 0:03:00]}  Nf6 {[%clk 0:02:57]} 2. Bf4 {[%clk 0:02:59]}  c5 {[%clk 0:02:56]} 3. c3 {[%clk 0:02:58]}  Nd5 {[%clk 0:02:55]} 4. Bd2 {[%clk 0:02:57]}  cxd4 {[%clk 0:02:53]} 5. cxd4 {[%clk 0:02:56]}  g6 {[%clk 0:02:50]} 6. e4 {[%clk 0:02:56]}  Nb6 {[%clk 0:02:51]} 7. Nc3 {[%clk 0:02:56]}  Bg7 {[%clk 0:02:51]} 8. Nf3 {[%clk 0:02:53]}  d6 {[%clk 0:02:50]} 9. h3 {[%clk 0:02:53]}  O-O {[%clk 0:02:50]} 10. Bd3 {[%clk 0:02:52]}  Nc6 {[%clk 0:02:50]} 11. Ne2 {[%clk 0:02:46]}  e5 {[%clk 0:02:48]} 12. d5 {[%clk 0:02:45]}  Ne7 {[%clk 0:02:46]} 13. Nc3 {[%clk 0:02:43]}  f5 {[%clk 0:02:45]} 14. Bg5 {[%clk 0:02:42]}  h6 {[%clk 0:02:41]} 15. Bxe7 {[%clk 0:02:41]}  Qxe7 {[%clk 0:02:42]} 16. Qc2 {[%clk 0:02:40]}  Bd7 {[%clk 0:02:39]} 17. O-O-O {[%clk 0:02:39]}  Rac8 {[%clk 0:02:37]} 18. Kb1 {[%clk 0:02:39]}  f4 {[%clk 0:02:34]} 19. Nd2 {[%clk 0:02:35]}  Na4 {[%clk 0:02:19]} 20. Nxa4 {[%clk 0:02:33]}  Rxc2 {[%clk 0:02:19]} 21. Bxc2 {[%clk 0:02:34]}  b5 {[%clk 0:02:11]} 22. Nc3 {[%clk 0:02:32]}  Rc8 {[%clk 0:02:10]} 23. Nf3 {[%clk 0:02:29]}  b4 {[%clk 0:02:08]} 24. Ne2 {[%clk 0:02:29]}  Bb5 {[%clk 0:02:08]} 25. Nc1 {[%clk 0:02:29]}  Qc7 {[%clk 0:02:07]} 26. Rd2 {[%clk 0:02:26]}  g5 {[%clk 0:02:03]} 27. Nd3 {[%clk 0:02:21]}  a5 {[%clk 0:01:59]} 28. Rc1 {[%clk 0:02:19]}  Bf6 {[%clk 0:01:56]} 29. Nfe1 {[%clk 0:02:18]}  Qb6 {[%clk 0:01:54]} 30. Bd1 {[%clk 0:02:15]}  Rxc1+ {[%clk 0:01:51]} 31. Nxc1 {[%clk 0:02:13]}  a4 {[%clk 0:01:44]} 32. Nf3 {[%clk 0:02:08]}  h5 {[%clk 0:01:42]} 33. Ne1 {[%clk 0:02:05]}  Be8 {[%clk 0:01:26]} 34. Nc2 {[%clk 0:01:58]}  Kg7 {[%clk 0:01:24]} 35. a3 {[%clk 0:01:43]}  bxa3 {[%clk 0:01:23]} 36. Nxa3 {[%clk 0:01:44]}  Kh6 {[%clk 0:01:22]} 37. Na2 {[%clk 0:01:38]}  g4 {[%clk 0:01:22]} 38. hxg4 {[%clk 0:01:37]}  hxg4 {[%clk 0:01:23]} 39. Bxg4 {[%clk 0:01:35]}  Bh4 {[%clk 0:01:21]} 40. Nc3 {[%clk 0:01:26]}  Bxf2 {[%clk 0:01:18]} 41. Nc4 {[%clk 0:01:26]}  Qc5 {[%clk 0:01:16]} 42. Nxe5 {[%clk 0:00:54]}  dxe5 {[%clk 0:01:10]} 43. d6 {[%clk 0:00:55]}  Bd4 {[%clk 0:01:09]} 44. d7 {[%clk 0:00:52]}  Bxd7 {[%clk 0:01:08]} 45. Bxd7 {[%clk 0:00:53]}  Bxc3 {[%clk 0:01:04]} 46. bxc3 {[%clk 0:00:53]}  Qxc3 {[%clk 0:01:05]} 47. Rc2 {[%clk 0:00:15]}  Qd3 {[%clk 0:01:05]} 48. Bxa4 {[%clk 0:00:14]}  Qxe4 {[%clk 0:01:05]} 49. Bc6 {[%clk 0:00:12]}  Qd3 {[%clk 0:01:03]} 50. Kb2 {[%clk 0:00:12]}  e4 {[%clk 0:01:02]} 51. Rc3 {[%clk 0:00:12]}  Qd2+ {[%clk 0:00:59]} 52. Rc2 {[%clk 0:00:12]}  Qb4+ {[%clk 0:00:58]} 53. Kc1 {[%clk 0:00:12]}  e3 {[%clk 0:00:56]} 54. Bf3 {[%clk 0:00:12]}  Qe1+ {[%clk 0:00:53]} 55. Kb2 {[%clk 0:00:12]}  Qb4+ {[%clk 0:00:44]} 56. Ka2 {[%clk 0:00:12]}  Kg5 {[%clk 0:00:40]} 57. Re2 {[%clk 0:00:13]}  Kh4 {[%clk 0:00:39]} 58. Rc2 {[%clk 0:00:13]}  Kg3 {[%clk 0:00:38]} 59. Rb2 {[%clk 0:00:13]}  Qc4+ {[%clk 0:00:37]} 60. Ka3 {[%clk 0:00:12]}  Qc3+ {[%clk 0:00:34]} 61. Ka2 {[%clk 0:00:11]}  Qe1 {[%clk 0:00:28]} 62. Kb3 {[%clk 0:00:11]}  Qf2 {[%clk 0:00:22]} 63. Rc2 {[%clk 0:00:10]}  Qxf3 {[%clk 0:00:08]} 64. gxf3 {[%clk 0:00:10]}  Kxf3 {[%clk 0:00:09]} 65. Kc3 {[%clk 0:00:10]}  e2 {[%clk 0:00:09]} 66. Kd2 {[%clk 0:00:10]}  Kf2 {[%clk 0:00:09]} 67. Rc1 {[%clk 0:00:11]}  f3 {[%clk 0:00:09]} 68. Re1 {[%clk 0:00:11]}  Kg3 {[%clk 0:00:08]} 69. Rg1+ {[%clk 0:00:09]}  Kf2 {[%clk 0:00:08]} 70. Ra1 {[%clk 0:00:08]}  Kg2 {[%clk 0:00:08]} 71. Ke1 {[%clk 0:00:09]}  Kg1 {[%clk 0:00:06]} 72. Rb1 {[%clk 0:00:07]}  Kg2 {[%clk 0:00:03]} 73. Rc1 {[%clk 0:00:07]}  Kg1 {[%clk 0:00:04]} 74. Kd2+ {[%clk 0:00:06]}  Kg2 {[%clk 0:00:04]} 75. Ke3 {[%clk 0:00:04]}  Kg3 {[%clk 0:00:02]} 76. Rg1+ {[%clk 0:00:04]}  Kh2 {[%clk 0:00:02]} 77. Kf2 {[%clk 0:00:05]}  Kh3 {[%clk 0:00:02]} 78. Re1 {[%clk 0:00:05]}  Kg4 {[%clk 0:00:03]} 79. Rg1+ {[%clk 0:00:05]}  Kf4 {[%clk 0:00:03]} 80. Ra1 {[%clk 0:00:06]}  Kg4 {[%clk 0:00:03]} 81. Ra4+ {[%clk 0:00:06]}  Kh3 {[%clk 0:00:04]} 82. Re4 {[%clk 0:00:07]}  e1=Q+ {[%clk 0:00:01]} 83. Rxe1 {[%clk 0:00:07]}  Kh2 {[%clk 0:00:01]} 84. Rg1 {[%clk 0:00:07]}  Kh3 {[%clk 0:00:02]} 85. Rg3+ {[%clk 0:00:08]}  Kh2 {[%clk 0:00:03]} 86. Kxf3 {[%clk 0:00:09]}  Kh1 {[%clk 0:00:04]} 87. Kf2 {[%clk 0:00:09]}  Kh2 {[%clk 0:00:04]} 88. Re3 {[%clk 0:00:10]}  Kh1 {[%clk 0:00:05]} 89. Rh3# {[%clk 0:00:11]} 1-0

[Event "November 21 Late 2023"]
[Site "https://www.chess.com"]
[Date "2023.11.21"]
[Round "3"]
[White "Della Morte, German"]
[Black "Nazari, Arad"]
[Result "0-1"]
[Board "65"]
[TimeControl "180+1"]
[WhiteFideId "113522"]
[BlackFideId "12577324"]
[WhiteElo "2306"]
[BlackElo "2100"]
[WhiteTeam "ARG"]
[BlackTeam "IRI"]
[WhiteClock "0:01:30"]
[BlackClock "0:00:51"]

1. e4 {[%clk 0:03:00]}  c5 {[%clk 0:02:59]} 2. Nc3 {[%clk 0:03:00]}  d6 {[%clk 0:03:00]} 3. g3 {[%clk 0:02:59]}  g6 {[%clk 0:02:59]} 4. Bg2 {[%clk 0:02:59]}  Bg7 {[%clk 0:03:00]} 5. d3 {[%clk 0:03:00]}  e6 {[%clk 0:03:01]} 6. f3 {[%clk 0:03:00]}  Ne7 {[%clk 0:03:01]} 7. Nge2 {[%clk 0:02:58]}  O-O {[%clk 0:03:02]} 8. O-O {[%clk 0:02:59]}  Nbc6 {[%clk 0:03:02]} 9. Be3 {[%clk 0:02:59]}  a6 {[%clk 0:03:02]} 10. Rb1 {[%clk 0:02:58]}  b5 {[%clk 0:03:02]} 11. a3 {[%clk 0:02:57]}  Bb7 {[%clk 0:03:03]} 12. f4 {[%clk 0:02:57]}  f5 {[%clk 0:02:55]} 13. d4 {[%clk 0:02:53]}  cxd4 {[%clk 0:02:08]} 14. Nxd4 {[%clk 0:02:47]}  Nxd4 {[%clk 0:02:07]} 15. Bxd4 {[%clk 0:02:39]}  e5 {[%clk 0:02:05]} 16. Be3 {[%clk 0:02:37]}  Rc8 {[%clk 0:01:57]} 17. Qd2 {[%clk 0:02:27]}  exf4 {[%clk 0:01:53]} 18. Bxf4 {[%clk 0:02:27]}  Bxc3 {[%clk 0:01:48]} 19. bxc3 {[%clk 0:02:25]}  fxe4 {[%clk 0:01:48]} 20. Qxd6 {[%clk 0:02:14]}  Qxd6 {[%clk 0:01:47]} 21. Bxd6 {[%clk 0:02:14]}  Rxf1+ {[%clk 0:01:48]} 22. Rxf1 {[%clk 0:02:14]}  Nf5 {[%clk 0:01:48]} 23. Be5 {[%clk 0:02:13]}  Rc5 {[%clk 0:01:45]} 24. Bf6 {[%clk 0:02:12]}  Rc4 {[%clk 0:01:25]} 25. g4 {[%clk 0:02:08]}  Ne3 {[%clk 0:01:23]} 26. Re1 {[%clk 0:01:59]}  Nxc2 {[%clk 0:00:59]} 27. Rd1 {[%clk 0:01:54]}  Ne3 {[%clk 0:00:57]} 28. Rd7 {[%clk 0:01:52]}  Bc6 {[%clk 0:00:51]} 29. Rg7+ {[%clk 0:01:51]}  Kf8 {[%clk 0:00:52]} 30. Rxh7 {[%clk 0:01:45]}  Nxg2 {[%clk 0:00:51]} 31. Kf2 {[%clk 0:01:30]}  e3+ {[%clk 0:00:51]} 0-1

[Event "November 21 Late 2023"]
[Site "https://www.chess.com"]
[Date "2023.11.21"]
[Round "3"]
[White "Sydoryka, Vladyslav"]
[Black "Przybylski, Wojciech"]
[Result "0-1"]
[Board "66"]
[TimeControl "180+1"]
[WhiteFideId "14145928"]
[BlackFideId "1117599"]
[WhiteElo "2271"]
[BlackElo "2203"]
[WhiteTeam "UKR"]
[BlackTeam "POL"]
[WhiteClock "0:00:00"]
[BlackClock "0:00:06"]

1. c4 {[%clk 0:03:00]}  e5 {[%clk 0:02:59]} 2. g3 {[%clk 0:03:01]}  Nf6 {[%clk 0:02:58]} 3. Bg2 {[%clk 0:03:00]}  d5 {[%clk 0:02:59]} 4. cxd5 {[%clk 0:03:00]}  Nxd5 {[%clk 0:02:59]} 5. Nf3 {[%clk 0:03:01]}  Nc6 {[%clk 0:02:59]} 6. O-O {[%clk 0:03:01]}  Be7 {[%clk 0:02:59]} 7. d4 {[%clk 0:03:01]}  e4 {[%clk 0:02:56]} 8. Ne5 {[%clk 0:03:01]}  f5 {[%clk 0:02:49]} 9. Nxc6 {[%clk 0:03:00]}  bxc6 {[%clk 0:02:48]} 10. Qc2 {[%clk 0:03:01]}  Bb7 {[%clk 0:02:42]} 11. f3 {[%clk 0:02:55]}  exf3 {[%clk 0:02:37]} 12. Rxf3 {[%clk 0:02:56]}  g6 {[%clk 0:02:17]} 13. Bh6 {[%clk 0:02:56]}  Bf6 {[%clk 0:02:09]} 14. e3 {[%clk 0:02:53]}  Qe7 {[%clk 0:02:06]} 15. Nc3 {[%clk 0:02:51]}  O-O-O {[%clk 0:01:05]} 16. Na4 {[%clk 0:02:28]}  Nb6 {[%clk 0:00:43]} 17. Nc5 {[%clk 0:02:25]}  Rxd4 {[%clk 0:00:40]} 18. exd4 {[%clk 0:01:01]}  Bxd4+ {[%clk 0:00:40]} 19. Kh1 {[%clk 0:01:01]}  Qxc5 {[%clk 0:00:40]} 20. Qxc5 {[%clk 0:00:53]}  Bxc5 {[%clk 0:00:40]} 21. Bg7 {[%clk 0:00:53]}  Rg8 {[%clk 0:00:39]} 22. Bc3 {[%clk 0:00:51]}  Bd6 {[%clk 0:00:39]} 23. Re3 {[%clk 0:00:43]}  Nd5 {[%clk 0:00:38]} 24. Re6 {[%clk 0:00:33]}  Kd7 {[%clk 0:00:26]} 25. Rae1 {[%clk 0:00:32]}  f4 {[%clk 0:00:23]} 26. Bh3 {[%clk 0:00:19]}  Kd8 {[%clk 0:00:22]} 27. gxf4 {[%clk 0:00:19]}  Bxf4 {[%clk 0:00:21]} 28. Bg2 {[%clk 0:00:11]}  Bc8 {[%clk 0:00:20]} 29. R6e2 {[%clk 0:00:11]}  Bg4 {[%clk 0:00:20]} 30. Re4 {[%clk 0:00:04]}  g5 {[%clk 0:00:18]} 31. Rd4 {[%clk 0:00:03]}  Bd7 {[%clk 0:00:16]} 32. h3 {[%clk 0:00:02]}  Bd6 {[%clk 0:00:15]} 33. Ra4 {[%clk 0:00:03]}  Bc5 {[%clk 0:00:15]} 34. Bd4 {[%clk 0:00:03]}  Bxd4 {[%clk 0:00:14]} 35. Rxd4 {[%clk 0:00:04]}  Kc8 {[%clk 0:00:14]} 36. Ra4 {[%clk 0:00:02]}  Kb7 {[%clk 0:00:14]} 37. Rd1 {[%clk 0:00:02]}  g4 {[%clk 0:00:12]} 38. hxg4 {[%clk 0:00:02]}  Bxg4 {[%clk 0:00:12]} 39. Rxd5 {[%clk 0:00:00]}  Rg6 {[%clk 0:00:06]} 0-1